bitfinex/quotes_BTCUSD_20250512
["timestamp","ask_amount","ask_price","bid_price","bid_amount"]
[1747067491162,0.49220791,102990.0,102980.0,1.04602266]
[1747067491370,0.49220791,102990.0,102980.0,1.03631232]
[1747067492216,0.20216,102990.0,102980.0,1.05573271]
[1747067492438,0.42548169,102990.0,102980.0,2.23097066]
[1747067492660,0.42548169,102990.0,102980.0,2.04591266]
[1747067492872,0.42548169,102990.0,102980.0,2.0556229]
[1747067493086,0.42548169,102990.0,102980.0,2.0196229]
[1747067493503,0.42548169,102990.0,102980.0,1.8045229]
[1747067494649,0.42548169,102990.0,102980.0,1.73231266]
[1747067494865,0.42548169,102990.0,102980.0,1.34571066]
[1747067495274,0.42548169,102990.0,102980.0,0.83238924]
[1747067495275,0.50191749,102990.0,102980.0,0.83238924]
[1747067495521,0.50191749,102990.0,102980.0,0.80078924]
[1747067496137,0.50191749,102990.0,102980.0,0.81608924]
[1747067496745,0.29975749,102990.0,102980.0,0.81608924]
[1747067497510,0.29975749,102990.0,102980.0,0.80078924]
[1747067497718,0.29975749,102990.0,102980.0,0.81608924]
[1747067498902,0.29975749,102990.0,102980.0,0.80078924]
[1747067501848,0.20392289,102980.0,102970.0,0.01003771]
[1747067502085,0.53201719,102980.0,102970.0,0.01003771]
[1747067502316,0.21365397,102970.0,102960.0,0.88568613]
[1747067502556,0.30950827,102970.0,102960.0,0.81528613]
[1747067503011,0.30950827,102970.0,102960.0,0.47528613]
[1747067503477,0.30950827,102970.0,102960.0,0.81528613]
[1747067504124,0.30950827,102970.0,102960.0,0.81828613]
[1747067504577,0.30950827,102970.0,102960.0,0.83099863]
[1747067504788,0.30950827,102970.0,102960.0,0.85496477]
[1747067505434,0.30950827,102970.0,102960.0,1.11025172]
[1747067505657,0.39501246,102980.0,102970.0,0.57584279]
[1747067505869,0.49086676,102980.0,102970.0,1.03663212]
[1747067506087,0.49086676,102980.0,102970.0,0.8424008]
[1747067506289,0.49086676,102980.0,102970.0,1.03663212]
[1747067506494,0.29006676,102980.0,102970.0,0.8424008]
[1747067506695,0.29006676,102980.0,102970.0,1.03663212]
[1747067506884,0.29006676,102980.0,102970.0,1.03763212]
[1747067507095,0.29006676,102980.0,102970.0,1.03863212]
[1747067507503,0.29006676,102980.0,102970.0,1.04834359]
[1747067507726,0.29006676,102980.0,102970.0,1.03863212]
[1747067508772,0.19419361,102990.0,102980.0,0.3553]
[1747067508978,0.29004791,102990.0,102980.0,0.81608924]
[1747067510793,0.29004791,102990.0,102980.0,0.83248924]
[1747067511629,0.29004791,102990.0,102980.0,0.81608924]
[1747067514164,0.29004791,102990.0,102980.0,0.80078924]
[1747067515421,0.28997484,102990.0,102980.0,0.80078924]
[1747067518029,0.42595818,103000.0,102980.0,1.0110017]
[1747067518271,0.42388207,102990.0,102980.0,0.58483322]
[1747067518477,0.43359118,102990.0,102980.0,0.58483322]
[1747067518702,0.43359118,102990.0,102980.0,0.56963322]
[1747067519350,0.42388207,102990.0,102980.0,0.96963322]
[1747067519560,0.22332207,102990.0,102980.0,1.44562246]
[1747067520259,0.29051248,103000.0,102990.0,0.54929361]
[1747067520465,0.50039636,103000.0,102990.0,0.81588924]
[1747067520711,0.50039636,103000.0,102990.0,0.80078924]
[1747067521101,0.00956731,103000.0,102990.0,1.04570173]
[1747067521309,0.02898374,103000.0,102990.0,1.05541075]
[1747067521512,0.22378315,103000.0,102990.0,1.04570192]
[1747067521724,0.22378315,103000.0,102990.0,1.06512042]
[1747067521725,0.23349188,103000.0,102990.0,1.06512042]
[1747067521888,0.23349188,103000.0,102990.0,1.07482953]
[1747067522092,0.23449188,103000.0,102990.0,1.07482953]
[1747067522473,0.23349188,103000.0,102990.0,1.04570192]
[1747067522704,0.01989986,103000.0,102990.0,1.78976824]
[1747067522911,0.0296084,103000.0,102990.0,2.20247626]
[1747067523114,0.03931704,103000.0,102990.0,2.20247626]
[1747067523312,0.23349179,103000.0,102990.0,1.66259324]
[1747067523551,0.23349179,103000.0,102990.0,1.59269324]
[1747067523745,0.23349179,103000.0,102990.0,1.60240244]
[1747067524127,0.22378372,103000.0,102990.0,1.43981933]
[1747067524346,0.22378372,103000.0,102990.0,1.44952853]
[1747067524550,0.23349245,103000.0,102990.0,1.47563764]
[1747067524951,0.23349245,103000.0,102990.0,1.46592853]
[1747067525162,0.23349245,103000.0,102990.0,1.49103764]
[1747067525335,0.23324789,103000.0,102990.0,1.49088243]
[1747067525565,0.23324789,103000.0,102990.0,1.21634205]
[1747067525566,0.21383099,103000.0,102990.0,1.21634205]
[1747067526003,0.33237665,103000.0,102990.0,0.75555281]
[1747067526228,0.33237665,103000.0,102990.0,1.21634205]
[1747067526380,0.9469175,103000.0,102990.0,0.006]
[1747067527488,0.63237665,103000.0,102990.0,0.346]
[1747067527709,0.73345665,103000.0,102990.0,0.80378924]
[1747067528115,0.73345665,103000.0,102990.0,0.80478924]
[1747067528533,0.73345665,103000.0,102990.0,0.80178924]
[1747067528955,0.73345665,103000.0,102990.0,0.80278924]
[1747067529629,0.73345665,103000.0,102990.0,0.342]
[1747067530831,0.73345665,103000.0,102990.0,0.80278924]
[1747067531186,0.73345665,103000.0,102990.0,0.342]
[1747067535113,0.71745665,103000.0,102990.0,0.342]
[1747067535528,0.73265665,103000.0,102990.0,0.342]
[1747067536018,0.50077665,103000.0,102990.0,0.342]
[1747067536242,0.70097665,103000.0,102990.0,0.342]
[1747067536470,0.10580162,103000.0,102990.0,1.04261075]
[1747067536706,0.22353897,103000.0,102990.0,1.38883573]
[1747067536931,0.22353897,103000.0,102990.0,1.19829273]
[1747067537413,0.02936328,103000.0,102990.0,1.20800175]
[1747067537656,0.03907182,103000.0,102990.0,1.60800175]
[1747067537872,0.04878046,103000.0,102990.0,1.60800175]
[1747067538510,0.24295606,103000.0,102990.0,1.60800175]
[1747067538938,0.03907258,103000.0,102990.0,1.60800175]
[1747067539155,0.02936299,103000.0,102990.0,1.60800175]
[1747067539597,0.03907144,103000.0,102990.0,1.60800175]
[1747067539801,0.02936299,103000.0,102990.0,1.60800175]
[1747067540228,0.0293629,103000.0,102990.0,1.60800175]
[1747067540453,0.03907135,103000.0,102990.0,1.60800175]
[1747067540675,0.03907126,103000.0,102990.0,1.60800175]
[1747067541179,0.0293629,103000.0,102990.0,1.60800175]
[1747067541416,0.00514766,103010.0,103000.0,0.23859982]
[1747067541656,0.2381335,103010.0,103000.0,1.80220437]
[1747067542087,0.2381335,103010.0,103000.0,1.7924963]
[1747067542299,0.2232788,103010.0,103000.0,1.4565143]
[1747067542524,0.2232788,103010.0,103000.0,1.4690753]
[1747067542777,0.2232788,103010.0,103000.0,1.50449158]
[1747067543225,0.21357139,103010.0,103000.0,1.31938732]
[1747067543482,0.21357139,103010.0,103000.0,1.31379558]
[1747067543734,0.21357139,103010.0,103000.0,1.32909558]
[1747067544127,0.01941511,103010.0,103000.0,1.33880365]
[1747067544327,0.2232788,103010.0,103000.0,1.33880365]
[1747067544569,0.2232788,103010.0,103000.0,1.33880375]
[1747067544805,0.01941454,103010.0,103000.0,1.36451182]
[1747067544980,0.02912224,103010.0,103000.0,1.36451182]
[1747067545977,0.22327814,103010.0,103000.0,1.36451182]
[1747067546663,0.34052531,103010.0,103000.0,0.00974933]
[1747067546881,0.34052531,103010.0,103000.0,4.131e-05]
[1747067547564,0.34052531,103010.0,103000.0,0.46083055]
[1747067548336,0.34052531,103010.0,103000.0,0.34004131]
[1747067548547,1.04064531,103010.0,103000.0,0.34004131]
[1747067548773,1.35518616,103010.0,103000.0,4.131e-05]
[1747067549008,1.36426303,103010.0,103000.0,4.131e-05]
[1747067549946,1.05518616,103010.0,103000.0,4.131e-05]
[1747067553253,1.35518616,103010.0,103000.0,4.131e-05]
[1747067553665,0.22048329,103000.0,102990.0,0.59361791]
[1747067554038,0.33283759,103000.0,102990.0,0.59366397]
[1747067554465,0.33283759,103000.0,102990.0,0.34004606]
[1747067554902,0.33283759,103000.0,102990.0,0.34104606]
[1747067556267,0.49989759,103000.0,102990.0,0.8028353]
[1747067557708,0.29973759,103000.0,102990.0,0.8028353]
[1747067557964,0.53229759,103000.0,102990.0,0.34204606]
[1747067565187,0.84683844,103000.0,102990.0,0.00204606]
[1747067565902,0.54683844,103000.0,102990.0,0.00204606]
[1747067566148,0.54683844,103000.0,102990.0,0.00104606]
[1747067566392,0.54683844,103000.0,102990.0,4.606e-05]
[1747067567327,0.54783844,103000.0,102990.0,4.606e-05]
[1747067567797,0.57629133,103000.0,102990.0,4.606e-05]
[1747067569298,0.54783844,103000.0,102990.0,4.606e-05]
[1747067572342,0.57614318,103000.0,102990.0,4.606e-05]
[1747067572763,1.43278672,103000.0,102990.0,4.606e-05]
[1747067572990,1.68693242,103000.0,102990.0,4.606e-05]
[1747067573416,1.71412874,103000.0,102990.0,4.606e-05]
[1747067573659,1.68693242,103000.0,102990.0,4.606e-05]
[1747067574462,1.69593242,103000.0,102990.0,4.606e-05]
[1747067574854,1.72611128,103000.0,102990.0,4.606e-05]
[1747067575268,1.72511128,103000.0,102990.0,4.606e-05]
[1747067575467,1.79678672,103000.0,102990.0,4.606e-05]
[1747067575989,1.70093242,103000.0,102990.0,4.606e-05]
[1747067576418,1.72810504,103000.0,102990.0,4.606e-05]
[1747067577157,1.70093242,103000.0,102990.0,4.606e-05]
[1747067578281,1.39093242,103000.0,102990.0,4.606e-05]
[1747067578506,1.41950318,103000.0,102990.0,4.606e-05]
[1747067578718,1.42950318,103000.0,102990.0,4.606e-05]
[1747067578904,1.12950318,103000.0,102990.0,4.606e-05]
[1747067579140,1.09119844,103000.0,102990.0,4.606e-05]
[1747067579359,1.12941444,103000.0,102990.0,4.606e-05]
[1747067580231,1.09119844,103000.0,102990.0,4.606e-05]
[1747067580436,1.10119844,103000.0,102990.0,4.606e-05]
[1747067580862,1.09119844,103000.0,102990.0,4.606e-05]
[1747067581068,0.75119844,103000.0,102990.0,4.606e-05]
[1747067581745,0.53697759,103000.0,102990.0,4.606e-05]
[1747067582003,0.73665759,103000.0,102990.0,4.606e-05]
[1747067582456,0.75119844,103000.0,102990.0,4.606e-05]
[1747067584005,0.21363304,102980.0,102970.0,0.62195343]
[1747067584261,0.70896734,102980.0,102970.0,0.37088343]
[1747067584474,0.70896734,102980.0,102970.0,0.83167267]
[1747067584921,0.30948734,102980.0,102970.0,1.02590399]
[1747067585609,0.70121728,102980.0,102970.0,0.83167267]
[1747067586217,0.301777,102980.0,102970.0,1.04532664]
[1747067586427,0.53074792,102980.0,102970.0,1.03561546]
[1747067586685,0.42518309,102980.0,102970.0,1.05503792]
[1747067586895,0.42518309,102980.0,102970.0,1.06474882]
[1747067586896,0.24068059,102980.0,102970.0,1.06474882]
[1747067587173,0.04084059,102980.0,102970.0,1.46474882]
[1747067587417,0.23405305,102980.0,102970.0,1.46474882]
[1747067587670,0.24276423,102980.0,102970.0,1.45703792]
[1747067587892,0.23305343,102980.0,102970.0,1.4687491]
[1747067588832,0.23305343,102980.0,102970.0,1.4784601]
[1747067589265,0.23305324,102980.0,102970.0,1.47845953]
[1747067589488,0.24276376,102980.0,102970.0,1.47845953]
[1747067589712,0.03884078,102980.0,102970.0,1.47845953]
[1747067589951,0.49417475,103000.0,102990.0,0.00970968]
[1747067590188,0.68942905,103000.0,102990.0,0.83138924]
[1747067590646,0.68942905,103000.0,102990.0,0.3706]
[1747067591549,0.69042905,103000.0,102990.0,0.3706]
[1747067591767,0.49086905,103000.0,102990.0,0.3706]
[1747067591956,0.69138905,103000.0,102990.0,0.83138924]
[1747067593330,0.71076623,103000.0,102990.0,1.03529253]
[1747067593544,0.70105778,103000.0,102990.0,0.83138924]
[1747067594000,0.70105778,103000.0,102990.0,1.03529253]
[1747067594245,0.69134905,103000.0,102990.0,1.03529253]
[1747067594705,0.49186905,103000.0,102990.0,1.03529253]
[1747067594938,0.40032,103000.0,102990.0,1.05471141]
[1747067595183,0.41973643,103000.0,102990.0,1.06442052]
[1747067595405,0.41973643,103000.0,102990.0,1.07612954]
[1747067595406,0.22896487,103000.0,102990.0,1.07612954]
[1747067595643,0.23867351,103000.0,102990.0,1.08983756]
[1747067595865,0.23867351,103000.0,102990.0,2.10080456]
[1747067596341,0.00970788,103000.0,102990.0,2.05078492]
[1747067596583,0.02912412,103000.0,102990.0,2.04878492]
[1747067596834,0.03883248,103000.0,102990.0,2.08428492]
[1747067597308,0.01941595,103000.0,102990.0,2.08428492]
[1747067597559,0.01941595,103000.0,102990.0,2.48428492]
[1747067597788,0.02912421,103000.0,102990.0,2.48428492]
[1747067597993,0.03883266,103000.0,102990.0,2.48428492]
[1747067598892,0.0485413,103000.0,102990.0,1.59557]
[1747067599120,0.03883342,103000.0,102990.0,1.59557]
[1747067599545,0.02912478,103000.0,102990.0,1.59557]
[1747067599967,0.23300807,103000.0,102990.0,1.58930524]
[1747067600180,0.24271671,103000.0,102990.0,1.59901435]
[1747067600401,0.31915468,103000.0,102990.0,1.57224413]
[1747067600638,0.31915468,103000.0,102990.0,1.59166301]
[1747067600843,0.30774719,103000.0,102990.0,1.59166301]
[1747067601689,0.29973769,103000.0,102990.0,1.45390055]
[1747067601940,0.29973769,103000.0,102990.0,1.58139004]
[1747067602821,0.29973769,103000.0,102990.0,1.46361004]
[1747067603032,0.29973769,103000.0,102990.0,1.1589568]
[1747067603252,0.29002905,103000.0,102990.0,1.45390055]
[1747067603463,0.29002905,103000.0,102990.0,1.46361004]
[1747067603681,0.29002905,103000.0,102990.0,1.62557043]
[1747067603682,0.31915449,103000.0,102990.0,1.62557043]
[1747067603890,0.31915449,103000.0,102990.0,1.63527973]
[1747067604093,0.32886322,103000.0,102990.0,1.63527963]
[1747067604306,0.32886322,103000.0,102990.0,1.64498874]
[1747067604742,0.32886322,103000.0,102990.0,1.63527963]
[1747067605061,0.32886322,103000.0,102990.0,1.62557043]
[1747067605556,0.31915496,103000.0,102990.0,1.62557043]
[1747067605790,0.30944642,103000.0,102990.0,1.61586104]
[1747067607051,0.29973778,103000.0,102990.0,1.60615155]
[1747067607202,0.29973778,103000.0,102990.0,1.45390055]
[1747067607423,0.29973778,103000.0,102990.0,1.46361013]
[1747067607620,0.29002905,103000.0,102990.0,0.75770802]
[1747067607923,0.29002905,103000.0,102990.0,0.96161287]
[1747067608125,0.29002905,103000.0,102990.0,0.80878924]
[1747067608755,0.29002905,103000.0,102990.0,1.01269243]
[1747067609096,0.29002905,103000.0,102990.0,1.03750192]
[1747067609434,0.29002905,103000.0,102990.0,1.04299243]
[1747067610272,0.30944585,103000.0,102990.0,1.05270173]
[1747067610476,0.30944585,103000.0,102990.0,1.06241093]
[1747067610689,0.30944585,103000.0,102990.0,1.07212004]
[1747067610901,0.30944585,103000.0,102990.0,1.05270173]
[1747067611293,0.30944585,103000.0,102990.0,1.04299243]
[1747067611454,0.29973759,103000.0,102990.0,1.05270192]
[1747067611667,0.29002905,103000.0,102990.0,1.02240192]
[1747067612139,0.29002905,103000.0,102990.0,1.42240192]
[1747067614078,0.29002905,103000.0,102990.0,1.41269243]
[1747067614525,0.32232905,103000.0,102990.0,0.008]
[1747067614969,0.63140609,103000.0,102990.0,0.008]
[1747067615183,0.73000609,103000.0,102990.0,0.348]
[1747067615399,0.73000609,103000.0,102990.0,0.008]
[1747067615618,0.73000609,103000.0,102990.0,0.348]
[1747067615865,0.72092905,103000.0,102990.0,0.34]
[1747067616132,0.68862905,103000.0,102990.0,0.34]
[1747067616336,0.31915478,103000.0,102990.0,0.84699892]
[1747067616592,0.51855478,103000.0,102990.0,0.83728924]
[1747067617177,0.50884642,103000.0,102990.0,0.83728924]
[1747067617888,0.50884642,103000.0,102990.0,0.80478924]
[1747067618105,0.50884642,103000.0,102990.0,0.82118924]
[1747067618520,0.50884642,103000.0,102990.0,0.83089892]
[1747067618737,0.50884642,103000.0,102990.0,0.82118924]
[1747067618906,0.49913778,103000.0,102990.0,0.82118924]
[1747067620185,0.49913778,103000.0,102990.0,0.83658924]
[1747067621548,0.49913778,103000.0,102990.0,0.82118924]
[1747067623791,0.49913778,103000.0,102990.0,0.3604]
[1747067624004,0.49913778,103000.0,102990.0,0.82118924]
[1747067625935,0.49913778,103000.0,102990.0,0.80478924]
[1747067626376,0.53023778,103000.0,102990.0,0.80478924]
[1747067626584,0.51413778,103000.0,102990.0,0.80478924]
[1747067626803,0.49913778,103000.0,102990.0,0.80478924]
[1747067628552,0.53083778,103000.0,102990.0,0.344]
[1747067632737,0.53083778,103000.0,102990.0,0.80478924]
[1747067632969,0.83083778,103000.0,102990.0,0.004]
[1747067633224,0.83993085,103000.0,102990.0,0.004]
[1747067634163,0.83993085,103000.0,102990.0,0.46478924]
[1747067634376,0.83993085,103000.0,102990.0,0.004]
[1747067637313,0.84537863,103000.0,102990.0,0.004]
[1747067638080,0.83083778,103000.0,102990.0,0.004]
[1747067641853,1.14537863,103000.0,102990.0,0.004]
[1747067642093,0.84537863,103000.0,102990.0,0.004]
[1747067642353,1.30616787,103000.0,102990.0,0.004]
[1747067642786,0.84537863,103000.0,102990.0,0.004]
[1747067643227,1.04385863,103000.0,102990.0,0.002]
[1747067643505,0.21363304,102980.0,102970.0,0.59174645]
[1747067643739,0.70736734,102980.0,102970.0,0.59174645]
[1747067644931,0.70736734,102980.0,102970.0,0.59374645]
[1747067645361,0.70736734,102980.0,102970.0,0.59574645]
[1747067645773,0.61151304,102980.0,102970.0,0.61124645]
[1747067645981,0.70736734,102980.0,102970.0,0.59574645]
[1747067646225,0.70736734,102980.0,102970.0,0.344]
[1747067646226,0.73946734,102980.0,102970.0,0.344]
[1747067648184,0.73937425,102980.0,102970.0,0.004]
[1747067649233,0.7539151,102980.0,102970.0,0.004]
[1747067649687,1.0539151,102980.0,102970.0,0.004]
[1747067649926,1.4733551,102980.0,102970.0,0.004]
[1747067650615,0.24397454,102960.0,102950.0,0.0433097]
[1747067650835,0.73766884,102960.0,102950.0,0.0433097]
[1747067651096,0.73766884,102960.0,102940.0,0.87881899]
[1747067651097,0.20398241,102950.0,102940.0,0.87881899]
[1747067651316,0.29983671,102950.0,102940.0,0.89441899]
[1747067651809,0.30954988,102950.0,102940.0,0.89441899]
[1747067652033,0.30954988,102950.0,102940.0,0.90873428]
[1747067652454,0.30954988,102950.0,102940.0,0.93379137]
[1747067652922,0.30954988,102950.0,102940.0,0.84016162]
[1747067653566,0.30954988,102950.0,102940.0,0.84516162]
[1747067653776,0.30954988,102950.0,102940.0,0.85016162]
[1747067653962,0.30954988,102950.0,102940.0,0.85987601]
[1747067654193,0.30954988,102950.0,102940.0,0.85016162]
[1747067654422,0.30954988,102950.0,102940.0,1.04444955]
[1747067654629,0.30954988,102950.0,102940.0,1.05416394]
[1747067655216,0.30954988,102950.0,102940.0,0.85016162]
[1747067655446,0.30954988,102950.0,102940.0,0.85987601]
[1747067656547,0.30954988,102950.0,102940.0,0.85016162]
[1747067656960,0.29983671,102950.0,102940.0,0.85016162]
[1747067657188,0.29983671,102950.0,102940.0,0.85987601]
[1747067657406,0.29983671,102950.0,102940.0,1.06387824]
[1747067657865,0.29983671,102950.0,102940.0,0.04937238]
[1747067657866,0.33173671,102950.0,102940.0,0.04937238]
[1747067658092,0.63173671,102950.0,102940.0,0.04937238]
[1747067658539,0.64627756,102950.0,102940.0,0.03005709]
[1747067659170,0.64627756,102950.0,102940.0,0.02505709]
[1747067659606,0.64627756,102950.0,102920.0,0.34]
[1747067659607,0.2234514,102930.0,102920.0,0.56915805]
[1747067659824,0.32902094,102930.0,102920.0,0.57074196]
[1747067659964,0.32902094,102930.0,102920.0,0.58558185]
[1747067660183,0.32902094,102930.0,102920.0,0.59529804]
[1747067660804,0.32950384,102930.0,102920.0,1.04637109]
[1747067661246,0.32950384,102930.0,102920.0,0.87714468]
[1747067661442,0.32950384,102930.0,102920.0,0.88314468]
[1747067661682,0.32950384,102930.0,102920.0,1.08718655]
[1747067661855,0.31978926,102930.0,102920.0,0.88314468]
[1747067662094,0.31978926,102930.0,102920.0,0.8734284]
[1747067662297,0.31978926,102930.0,102920.0,0.88314468]
[1747067662469,0.30035925,102930.0,102920.0,0.41263916]
[1747067662706,0.33185925,102930.0,102920.0,0.38093916]
[1747067663034,0.72921925,102930.0,102920.0,0.38093916]
[1747067663708,0.33185925,102930.0,102920.0,0.04593916]
[1747067663932,0.72921925,102930.0,102920.0,0.04593916]
[1747067666612,0.70739421,102930.0,102920.0,0.74441334]
[1747067666854,0.70739421,102930.0,102920.0,0.5384284]
[1747067667133,0.69767925,102930.0,102920.0,0.5225284]
[1747067667329,0.69767925,102930.0,102920.0,0.5067284]
[1747067667534,0.72937925,102930.0,102920.0,0.5067284]
[1747067667750,0.72937925,102930.0,102920.0,0.04593916]
[1747067670336,0.71317925,102930.0,102920.0,0.04593916]
[1747067670544,0.69767925,102930.0,102920.0,0.04593916]
[1747067671192,0.6976212,102930.0,102920.0,0.04593916]
[1747067671415,0.7140212,102930.0,102920.0,0.04593916]
[1747067671614,0.7294212,102930.0,102920.0,0.04593916]
[1747067672034,0.20404187,102920.0,102910.0,1.31050755]
[1747067672242,0.21375815,102920.0,102910.0,1.31050953]
[1747067672444,0.22347415,102920.0,102910.0,1.32022638]
[1747067672668,0.23319005,102920.0,102910.0,1.31050962]
[1747067673014,0.23319005,102920.0,102910.0,1.31050972]
[1747067673220,0.23319005,102920.0,102910.0,1.31550972]
[1747067673691,0.21375815,102920.0,102910.0,1.1017308]
[1747067673837,0.21375815,102920.0,102910.0,1.11665872]
[1747067674058,0.21375815,102920.0,102910.0,1.13137585]
[1747067674235,0.21375815,102920.0,102910.0,1.33543745]
[1747067674437,0.21375815,102920.0,102910.0,1.32572042]
[1747067674666,0.21375815,102920.0,102910.0,1.33543736]
[1747067674868,0.21375815,102920.0,102910.0,0.26086948]
[1747067675076,0.21375815,102920.0,102910.0,0.70635872]
[1747067675488,0.21375815,102920.0,102910.0,0.90070329]
[1747067675702,0.21375815,102920.0,102910.0,0.92013754]
[1747067675866,0.21375815,102920.0,102910.0,0.94171904]
[1747067676062,0.21375815,102920.0,102910.0,0.94171914]
[1747067676265,0.21375815,102920.0,102910.0,0.72794022]
[1747067676472,0.21375815,102920.0,102910.0,0.92601904]
[1747067676670,0.21375815,102920.0,102910.0,0.91630201]
[1747067676869,0.21375815,102920.0,102910.0,0.92601914]
[1747067677088,0.41223815,102920.0,102910.0,0.91630201]
[1747067677284,0.41223815,102920.0,102910.0,0.71224022]
[1747067677485,0.40252196,102920.0,102910.0,0.71224022]
[1747067678049,0.40252196,102920.0,102910.0,0.91630192]
[1747067678253,0.40252196,102920.0,102910.0,0.71224022]
[1747067678666,0.40252196,102920.0,102910.0,0.72195744]
[1747067678908,0.40252196,102920.0,102910.0,0.71224022]
[1747067679098,0.40252196,102920.0,102910.0,1.11224022]
[1747067680243,0.40252196,102920.0,102910.0,0.65145098]
[1747067680451,0.39280568,102920.0,102910.0,1.11224022]
[1747067680655,0.52035998,102920.0,102910.0,0.25145098]
[1747067680880,0.52035998,102920.0,102910.0,0.04650942]
[1747067681757,0.83490083,102920.0,102910.0,0.0315815]
[1747067682183,0.83490083,102920.0,102910.0,0.0265815]
[1747067682437,0.83490083,102920.0,102910.0,0.0295815]
[1747067682837,0.83490083,102920.0,102910.0,0.0245815]
[1747067683114,0.83490083,102920.0,102910.0,0.0265815]
[1747067686333,0.83490083,102920.0,102910.0,0.005]
[1747067687375,1.07371982,102920.0,102910.0,0.005]
[1747067687598,1.07371982,102920.0,102910.0,0.003]
[1747067687826,0.61293058,102920.0,102910.0,0.004]
[1747067688054,1.07371982,102920.0,102910.0,0.001]
[1747067688260,1.07371982,102920.0,102910.0,0.002]
[1747067688261,0.61293058,102920.0,102910.0,0.002]
[1747067688481,0.91293058,102920.0,102910.0,0.002]
[1747067688688,0.91293058,102920.0,102910.0,0.001]
[1747067689118,0.91693058,102920.0,102910.0,0.001]
[1747067689547,0.21384069,102880.0,102870.0,0.80414343]
[1747067689734,0.70645499,102880.0,102870.0,0.80414343]
[1747067689925,0.70645499,102880.0,102870.0,0.82602653]
[1747067690947,0.7069376,102880.0,102870.0,0.82467234]
[1747067691358,0.7069376,102880.0,102870.0,0.82767234]
[1747067691981,0.7069376,102880.0,102870.0,0.84242679]
[1747067694506,0.69721802,102880.0,102870.0,0.84242679]
[1747067696402,0.69721802,102880.0,102870.0,0.87272679]
[1747067696620,0.69721802,102880.0,102870.0,0.84242679]
[1747067699132,0.69713802,102880.0,102870.0,0.84242679]
[1747067699753,0.69713802,102880.0,102870.0,0.85882679]
[1747067700198,0.30045802,102880.0,102870.0,0.85882679]
[1747067700429,0.01020219,102880.0,102870.0,1.0974088]
[1747067700637,0.23376237,102880.0,102870.0,1.08768846]
[1747067700821,0.23376237,102880.0,102870.0,1.07796784]
[1747067701061,0.22404307,102880.0,102870.0,1.07796784]
[1747067701262,0.22404307,102880.0,102870.0,1.06824693]
[1747067701473,0.20460381,102880.0,102870.0,1.28354779]
[1747067701676,0.20460381,102880.0,102870.0,1.27382679]
[1747067701890,0.20460381,102880.0,102870.0,1.28354779]
[1747067702100,0.20460381,102880.0,102870.0,1.48768865]
[1747067702538,0.19488385,102880.0,102870.0,1.24133414]
[1747067702950,0.19488385,102880.0,102870.0,0.84133414]
[1747067704030,0.32303815,102880.0,102870.0,0.84133414]
[1747067704283,0.32303815,102880.0,102870.0,0.3805449]
[1747067706868,0.62303815,102880.0,102870.0,0.0268831]
[1747067707083,0.92303815,102880.0,102870.0,0.0268831]
[1747067707593,0.92303815,102880.0,102870.0,0.3668831]
[1747067708030,0.92303815,102880.0,102870.0,0.3638831]
[1747067708238,0.92303815,102880.0,102870.0,0.3648831]
[1747067708866,0.97303815,102880.0,102870.0,0.3648831]
[1747067709332,0.97303815,102880.0,102870.0,0.3628831]
[1747067709541,0.97303815,102880.0,102870.0,0.3638831]
[1747067711739,0.987579,102880.0,102870.0,0.3638831]
[1747067714607,0.98744091,102880.0,102870.0,0.3638831]
[1747067715362,1.38392091,102880.0,102870.0,0.3638831]
[1747067717926,1.38392091,102880.0,102870.0,0.3628831]
[1747067718148,1.38392091,102880.0,102870.0,0.3618831]
[1747067718357,1.38592091,102880.0,102870.0,0.3618831]
[1747067718722,1.80584091,102880.0,102870.0,0.3618831]
[1747067719141,1.50584091,102880.0,102870.0,0.34]
[1747067719557,1.50584091,102880.0,102870.0,0.36183937]
[1747067720342,1.50584091,102880.0,102870.0,0.02183937]
[1747067720579,0.53554095,102870.0,102860.0,0.82994531]
[1747067720804,0.9459361,102870.0,102860.0,0.48994531]
[1747067721032,1.40672534,102870.0,102860.0,0.48994531]
[1747067721239,1.10672534,102870.0,102860.0,0.48994531]
[1747067721676,0.6459361,102870.0,102860.0,0.49094531]
[1747067721884,0.6459361,102870.0,102860.0,0.49194531]
[1747067722315,0.6459361,102870.0,102860.0,0.48994531]
[1747067722522,0.6479361,102870.0,102860.0,0.48994531]
[1747067724337,1.40872534,102870.0,102860.0,0.48994531]
[1747067725288,1.40672534,102870.0,102860.0,0.48994531]
[1747067725772,1.41072534,102870.0,102860.0,0.48994531]
[1747067728013,1.3458561,102870.0,102860.0,0.48994531]
[1747067729179,1.41072534,102870.0,102860.0,0.48994531]
[1747067729397,1.80664534,102870.0,102860.0,0.48994531]
[1747067731352,1.81766395,102870.0,102860.0,0.48994531]
[1747067731981,1.88594395,102870.0,102860.0,0.48994531]
[1747067732153,1.82766395,102870.0,102860.0,0.48994531]
[1747067736766,1.43174395,102870.0,102860.0,0.48994531]
[1747067736965,1.42174395,102870.0,102860.0,0.48994531]
[1747067737168,1.06649386,102870.0,102860.0,0.48994531]
[1747067737417,1.46233386,102870.0,102860.0,0.48994531]
[1747067738124,1.47687471,102870.0,102860.0,0.48994531]
[1747067738685,1.47687471,102870.0,102860.0,0.48994531]
[1747067740189,0.91501386,102870.0,102860.0,0.82994531]
[1747067740422,1.31077386,102870.0,102860.0,0.84614531]
[1747067740812,1.31077386,102870.0,102860.0,0.86274531]
[1747067741013,1.31077386,102870.0,102860.0,0.84614531]
[1747067741156,1.31077386,102870.0,102860.0,0.82994531]
[1747067743223,1.05581471,102870.0,102860.0,0.82994531]
[1747067743465,0.75581471,102870.0,102860.0,0.82994531]
[1747067743695,1.21660395,102870.0,102860.0,0.48994531]
[1747067744210,0.75581471,102870.0,102860.0,0.48994531]
[1747067744426,0.36005471,102870.0,102860.0,0.48994531]
[1747067759503,0.32955471,102870.0,102860.0,0.48994531]
[1747067759717,0.62955471,102870.0,102860.0,0.48994531]
[1747067759918,0.31501386,102870.0,102860.0,0.48994531]
[1747067760537,0.31501386,102870.0,102860.0,0.50574531]
[1747067762371,0.95943646,102870.0,102860.0,0.48994531]
[1747067762589,1.0394669,102870.0,102860.0,0.48994531]
[1747067762833,0.71744091,102870.0,102860.0,0.48994531]
[1747067763077,0.38824791,102870.0,102860.0,0.48994531]
[1747067763314,0.61501386,102870.0,102860.0,1.32243455]
[1747067763556,0.32273458,102870.0,102860.0,1.32243455]
[1747067763800,0.22687934,102870.0,102860.0,2.58649755]
[1747067764053,0.25132068,102870.0,102860.0,2.42549955]
[1747067764311,0.32073439,102870.0,102860.0,1.72243455]
[1747067764551,0.32673439,102870.0,102860.0,1.72243455]
[1747067764774,0.32673439,102870.0,102860.0,1.32243455]
[1747067765023,0.32273439,102870.0,102860.0,1.32243455]
[1747067765242,0.32273439,102870.0,102860.0,1.32443455]
[1747067766573,0.32073439,102870.0,102860.0,1.32443455]
[1747067766811,0.32073439,102870.0,102860.0,1.32643455]
[1747067768377,0.32073439,102870.0,102860.0,1.07156463]
[1747067770726,0.31101386,102870.0,102860.0,1.07156463]
[1747067771126,0.21515956,102870.0,102860.0,1.07156463]